lending/lending_fUSD_20241005
["ID","MTS","AMOUNT","RATE_DAILY","PERIOD"]
[339887717,1728141051474,-151.0,0.00037,7]
[339887718,1728141051483,-152.710164,0.00037,7]
[339887719,1728141051492,-151.0,0.00037,7]
[339887720,1728141051501,-238.0,0.00037042,30]
[339887721,1728141051511,-150.0,0.00037066,120]
[339887722,1728141051520,-500.0,0.00037071,120]
[339887723,1728141051530,-150.0,0.00037078,120]
[339887724,1728141051539,-150.0,0.00037123,2]
[339887725,1728141051548,-150.0,0.00037123,2]
[339887726,1728141051558,-150.0,0.00037123,2]
[339887727,1728141051567,-150.0,0.00037123,2]
[339887728,1728141051577,-151.0,0.00037203,7]
[339887729,1728141051587,-954.833894,0.00037203,7]
[339887730,1728141051596,-954.833894,0.00037203,7]
[339887731,1728141051606,-151.0,0.00037203,7]
[339887732,1728141051615,-999.0,0.0003726,120]
[339887733,1728141051625,-1000.0,0.0003726,30]
[339887734,1728141051634,-392.0,0.0003726,30]
[339887735,1728141051643,-1000.0,0.0003726,30]
[339887736,1728141051653,-1000.0,0.000373,15]
[339887737,1728141051663,-152.0,0.00037305,6]
[339887738,1728141051672,-150.0,0.00037376,120]
[339887739,1728141051681,-1000.0,0.000376,15]
[339887740,1728141051693,-150.0,0.00037627,120]
[339887741,1728141051703,-689.5,0.00037641,120]
[339887742,1728141051712,-150.0,0.0003779,120]
[339887743,1728141051721,-150.0,0.00037797,120]
[339887744,1728141051731,-796.07791131,0.000379,15]
[339887745,1728141051745,-203.92208869,0.000379,15]
[339887746,1728141051754,-269.64989072,0.000379,7]
[339887747,1728141051765,-383.66,0.00037934,2]
[339887748,1728141051775,-656.29422263,0.00037999,120]
[339887749,1728141051784,-2188.5118893,0.00038,28]
[339887750,1728141051795,-47811.4881107,0.00038,28]
[339887751,1728141051804,-15951.73545175,0.00038,38]
[339887752,1728141051816,-18315.62379713,0.00038,38]
[339887753,1728141051827,-4869.92671002,0.00038,38]
[339887754,1728141051837,-5976.22869519,0.00038,38]
[339887755,1728141051853,-150.0,0.00020657,2]
[339887756,1728141051863,-306.47,0.00038,38]
[339887757,1728141051874,-776.06146747,0.00038,38]
[339887758,1728141051884,-478.80000015,0.00038,38]
[339887759,1728141051895,-3325.15387829,0.00038,38]
[339887760,1728141051904,-1800.0,0.00038,39]
[339887761,1728141051914,-190.76133763,0.00038,30]
[339887762,1728141051923,-267.64796988,0.00038,120]
[339887763,1728141051945,-150.0,0.00016967,2]
[339887764,1728141051955,-428.85,0.00027394,2]
[339887765,1728141051964,-732.35203012,0.00038,120]
[339887766,1728141051973,-1000.0,0.00038,18]
[339887767,1728141051982,-250.0,0.00038,30]
[339887768,1728141051992,-152.0,0.00038121,7]
[339887769,1728141052001,-500.0,0.0003818,120]
[339887770,1728141052010,-1000.0,0.000382,15]
[339887771,1728141052019,-351.11123073,0.00038338,2]
[339887772,1728141052028,-500.0,0.00038355,10]
[339887773,1728141052045,-507.88253625,0.00038355,10]
[339887774,1728141052054,-300.0,0.00038355,30]
[339887775,1728141052063,-300.0,0.00038355,30]
[339887776,1728141052072,-300.0,0.00038355,30]
[339887777,1728141052081,-275.031153,0.00038356,30]
[339887778,1728141052090,-500.0,0.00038356,30]
[339887779,1728141052099,-500.0,0.00038356,30]
[339887780,1728141052108,-500.0,0.00038356,30]
[339887781,1728141052118,-500.0,0.00038356,30]
[339887782,1728141052127,-500.0,0.00038356,30]
[339887783,1728141052136,-500.0,0.00038356,30]
[339887784,1728141052146,-500.0,0.00038356,30]
[339887785,1728141052155,-500.0,0.00038356,30]
[339887786,1728141052165,-500.0,0.00038356,30]
[339887787,1728141052174,-500.0,0.00038356,30]
[339887788,1728141052183,-500.0,0.00038356,30]
[339887789,1728141052194,-500.0,0.00038356,30]
[339887790,1728141052203,-139.7640504,0.00038356,30]
[339887791,1728141052217,-360.2359496,0.00038356,30]
[339887792,1728141052226,-500.0,0.00038356,30]
[339887793,1728141052235,-155.8640504,0.00038356,30]
[339887794,1728141052248,-117.10559945,0.00038356,30]
[339887795,1728141052259,-500.0,0.00038356,30]
[339887796,1728141052268,-500.0,0.00038356,30]
[339887797,1728141052277,-500.0,0.00038356,30]
[339887798,1728141052288,-500.0,0.00038356,30]
[339887799,1728141052297,-500.0,0.00038356,30]
[339887800,1728141052306,-500.0,0.00038356,30]
[339887801,1728141052315,-500.0,0.00038356,30]
[339887802,1728141052325,-500.0,0.00038356,30]
[339887803,1728141052334,-500.0,0.00038356,30]
[339887804,1728141052343,-500.0,0.00038356,30]
[339887805,1728141052352,-500.0,0.00038356,30]
[339887806,1728141052361,-102.69890055,0.00038356,30]
[339887807,1728141052381,-150.0,0.00020666,2]
[339887808,1728141052391,-401.90243261,0.00038356,30]
[339887809,1728141052400,-504.96245412,0.00038356,30]
[339887810,1728141052409,-500.0,0.00038356,30]
[339887811,1728141052419,-500.0,0.00038356,30]
[339887812,1728141052428,-183.13511327,0.00038356,30]
[339887813,1728141052440,-316.220239,0.00038356,30]
[339887814,1728141053452,-7500.0,0.00011955,2]
[339887815,1728141053461,-1659.82943714,0.00012869,2]
[339887816,1728141053471,-150.0,0.00019731,2]
[339887817,1728141053480,-150.0,0.00020311,2]
[339887818,1728141053489,-150.0,0.0002036,2]
[339887819,1728141053498,-150.0,0.00020422,2]
[339887820,1728141053508,-150.0,0.00020523,2]
[339887821,1728141053517,-150.0,0.00020526,2]
[339887822,1728141053526,-150.0,0.00020533,2]
[339887823,1728141053535,-150.0,0.00020534,2]
[339887824,1728141053544,-150.0,0.00020537,2]
[339887825,1728141053554,-150.0,0.00020557,2]
[339887826,1728141053566,-150.0,0.00020568,2]
[339887827,1728141053575,-150.0,0.00020573,2]
[339887828,1728141053585,-150.0,0.0002059,2]
[339887829,1728141053594,-150.0,0.0002062,2]
[339887830,1728141053603,-150.0,0.00020627,2]
[339887831,1728141053613,-150.0,0.00020643,2]
[339887832,1728141053624,-150.0,0.00020653,2]
[339887833,1728141053635,-150.0,0.00020655,2]
[339887834,1728141053646,-150.0,0.00020658,2]
[339887835,1728141053655,-150.0,0.0002067,2]
[339887836,1728141053665,-150.0,0.00020683,2]
[339887837,1728141053674,-150.0,0.0002069,2]
[339887838,1728141053683,-150.0,0.00020694,2]
[339887839,1728141053695,-150.0,0.00020695,2]
[339887840,1728141053704,-150.0,0.00020704,2]
[339887841,1728141053714,-150.0,0.00020705,2]
[339887842,1728141053723,-150.0,0.0002071,2]
[339887843,1728141053732,-150.0,0.00020724,2]
[339887844,1728141053743,-150.0,0.00020725,2]
[339887845,1728141053752,-150.0,0.00020732,2]
[339887846,1728141053763,-150.0,0.00020761,2]
[339887847,1728141053774,-150.0,0.00020775,2]
[339887848,1728141053785,-150.0,0.00020776,2]
[339887849,1728141053795,-150.0,0.00020806,2]
[339887850,1728141053804,-150.0,0.00020809,2]
[339887851,1728141053814,-600.45,0.00020841,3]
[339887852,1728141053824,-150.0,0.00020853,2]
[339887853,1728141053835,-150.0,0.00021661,2]
[339887854,1728141053845,-150.0,0.00021702,2]
[339887855,1728141053854,-150.0,0.00021704,2]
[339887856,1728141053864,-150.0,0.00021722,2]
[339887857,1728141053875,-150.0,0.00021751,2]
[339887858,1728141053884,-150.0,0.000218,2]
[339887859,1728141053893,-150.0,0.00021804,2]
[339887860,1728141053903,-150.0,0.00021824,2]
[339887861,1728141053914,-292.79645576,0.0002183,2]
[339887862,1728141053924,-150.0,0.00021872,2]
[339887863,1728141053935,-150.0,0.00021875,2]
[339887864,1728141053947,-150.0,0.00021876,2]
[339887865,1728141053957,-150.0,0.00021889,2]
[339887866,1728141053967,-150.0,0.00021908,2]
[339887867,1728141053977,-150.0,0.00021909,2]
[339887868,1728141053986,-150.0,0.00021912,2]
[339887869,1728141053997,-150.0,0.0002192,2]
[339887870,1728141054007,-150.0,0.00021927,2]
[339887871,1728141054017,-150.0,0.0002338,2]
[339887872,1728141054027,-717.05,0.0002338,2]
[339887873,1728141054036,-150.0,0.0002338,2]
[339887874,1728141054046,-0.64464773,0.00038356,30]
[339887875,1728141054057,-415.27053776,0.00038356,30]
[339887876,1728141054066,-500.0,0.00038356,30]
[339887877,1728141054076,-500.0,0.00038356,30]
[339887878,1728141054086,-500.0,0.00038356,30]
[339887879,1728141054096,-500.0,0.00038356,30]
[339887880,1728141054108,-572.44962276,0.00038356,30]
[339887881,1728141054119,-501.83716365,0.00038356,30]
[339887882,1728141054130,-500.0,0.00038356,30]
[339887883,1728141054141,-501.17642204,0.00038356,30]
[339887884,1728141054152,-501.20142992,0.00038356,30]
[339887885,1728141054161,-500.0,0.00038356,30]
[339887886,1728141054171,-500.0,0.00038356,30]
[339887887,1728141054182,-500.0,0.00038356,30]
[339887888,1728141054193,-500.0,0.00038356,30]
[339887889,1728141054204,-392.20452927,0.00038356,30]
[339887890,1728141054219,-107.79547073,0.00038356,30]
[339887891,1728141054231,-500.0,0.00038356,30]
[339887892,1728141054242,-501.27528805,0.00038356,30]
[339887893,1728141054252,-1123.13,0.00038356,30]
[339887894,1728141054262,-500.0,0.00038356,30]
[339887895,1728141054271,-500.0,0.00038356,30]
[339887896,1728141054280,-327.40495458,0.00038356,2]
[339887897,1728141054290,-571.97,0.00038356,30]
[339887898,1728141054299,-258.87369541,0.00038356,30]
[339887899,1728141054309,-797.71,0.00038356,30]
[339887900,1728141054318,-500.0,0.00038356,30]
[339887901,1728141054331,-783.58,0.00038356,30]
[339887902,1728141054341,-222.75392625,0.00038356,30]
[339887903,1728141054353,-500.0,0.00038356,30]
[339887904,1728141054364,-500.0,0.00038356,30]
[339887905,1728141054374,-500.0,0.00038356,30]
[339887906,1728141054383,-1052.9,0.00038356,30]
[339887907,1728141054393,-1142.94,0.00038356,30]
[339887908,1728141054404,-547.31,0.00038356,30]
[339887909,1728141054416,-503.38093355,0.00038356,30]
[339887910,1728141054425,-500.0,0.00038356,30]
[339887911,1728141054435,-500.0,0.00038356,30]
[339887912,1728141054445,-540.06033529,0.00038356,30]
[339887913,1728141054454,-500.0,0.00038356,30]
[339887914,1728141054464,-500.0,0.00038356,30]
[339887915,1728141054473,-500.0,0.00038356,30]
[339887916,1728141054483,-500.0,0.00038356,30]
[339887917,1728141054492,-498.51385997,0.00038356,30]
[339887918,1728141054501,-500.0,0.00038356,30]
[339887919,1728141054511,-1288.98,0.00038356,30]
[339887920,1728141054520,-500.0,0.00038356,30]
[339887921,1728141054530,-500.0,0.00038356,30]
[339887922,1728141054542,-500.0,0.00038356,30]
[339887923,1728141054551,-1756.4,0.00038356,30]
[339887924,1728141054559,-516.10589606,0.00038356,30]
[339887925,1728141054569,-500.0,0.00038356,30]
[339887926,1728141054578,-1094.93,0.00038356,30]
[339887927,1728141054588,-500.0,0.00038356,30]
[339887928,1728141054598,-500.0,0.00038356,30]
[339887929,1728141054608,-332.96962279,0.00038356,30]
[339887930,1728141054617,-791.68,0.00038356,30]
[339887931,1728141054627,-500.0,0.00038356,30]
[339887932,1728141054636,-500.0,0.00038356,30]
[339887933,1728141054646,-500.0,0.00038356,30]
[339887934,1728141054657,-500.0,0.00038356,30]
[339887935,1728141054666,-500.0,0.00038356,30]
[339887936,1728141054675,-502.55384266,0.00038356,30]
[339887937,1728141054685,-500.0,0.00038356,30]
[339887938,1728141054698,-1102.58,0.00038356,30]
[339887939,1728141054707,-500.0,0.00038356,30]
[339887940,1728141054716,-500.0,0.00038356,30]
[339887941,1728141054726,-500.0,0.00038356,30]
[339887942,1728141054735,-500.0,0.00038356,30]
[339887943,1728141054744,-500.0,0.00038356,30]
[339887944,1728141054753,-500.0,0.00038356,7]
[339887945,1728141054762,-500.0,0.00038356,7]
[339887946,1728141054771,-500.0,0.00038356,7]
[339887947,1728141054781,-1178.48,0.00038356,30]
[339887948,1728141054791,-500.0,0.00038356,30]
[339887949,1728141054931,-500.0,0.00038356,30]
[339887950,1728141054961,-500.0,0.00038356,30]
[339887951,1728141054971,-842.33,0.00038356,30]
[339887952,1728141054980,-500.0,0.00038356,7]
[339887953,1728141054989,-500.0,0.00038356,7]
[339887954,1728141054999,-500.0,0.00038356,30]
[339887955,1728141055008,-500.0,0.00038356,7]
[339887956,1728141055017,-998.05,0.00038356,30]
[339887957,1728141055027,-500.0,0.00038356,30]
[339887958,1728141055036,-866.97,0.00038356,30]
[339887959,1728141055053,-500.0,0.00038356,30]
[339887960,1728141055062,-500.0,0.00038356,30]
[339887961,1728141055071,-500.0,0.00038356,30]
[339887962,1728141055080,-500.0,0.00038356,30]
[339887963,1728141055089,-500.0,0.00038356,30]
[339887964,1728141055098,-500.0,0.00038356,30]
[339887965,1728141055107,-1760.71,0.00038356,30]
[339887966,1728141055117,-1505.06,0.00038356,30]
[339887967,1728141055126,-500.0,0.00038356,30]
[339887968,1728141055135,-500.0,0.00038356,30]
[339887969,1728141055144,-983.98,0.00038356,30]
[339887970,1728141055154,-500.0,0.00038356,30]
[339887971,1728141055163,-500.0,0.00038356,30]
[339887972,1728141055171,-502.89182832,0.00038356,30]
[339887973,1728141055181,-844.01,0.00038356,30]
[339887974,1728141055191,-500.0,0.00038356,30]
[339887975,1728141055200,-500.0,0.00038356,30]
[339887976,1728141055210,-592.33,0.00038356,30]
[339887977,1728141055219,-742.81,0.00038356,30]
[339887978,1728141055228,-500.0,0.00038356,30]
[339887979,1728141055238,-500.0,0.00038356,30]
[339887980,1728141055248,-755.23,0.00038356,30]
[339887981,1728141055257,-1008.24,0.00038356,30]
[339887982,1728141055266,-751.21,0.00038356,30]
[339887983,1728141055275,-500.0,0.00038356,30]
[339887984,1728141055284,-500.0,0.00038356,30]
[339887985,1728141055295,-500.0,0.00038356,30]
[339887986,1728141055304,-670.9,0.00038356,30]
[339887987,1728141055313,-309.38875467,0.00038356,30]
[339887988,1728141055322,-1099.89,0.00038356,30]
[339887989,1728141055332,-503.06957434,0.00038356,30]
[339887990,1728141055342,-500.0,0.00038356,30]
[339887991,1728141055351,-500.0,0.00038356,30]
[339887992,1728141055360,-500.0,0.00038356,30]
[339887993,1728141055369,-500.0,0.00038356,30]
[339887994,1728141055379,-500.0,0.00038356,30]
[339887995,1728141055388,-940.69,0.00038356,30]
[339887996,1728141055398,-500.0,0.00038356,30]
[339887997,1728141055407,-500.0,0.00038356,30]
[339887998,1728141055416,-500.0,0.00038356,30]
[339887999,1728141055426,-500.0,0.00038356,30]
[339888000,1728141055435,-1000.45,0.00038356,30]
[339888001,1728141055444,-500.0,0.00038356,30]
[339888002,1728141055454,-628.05,0.00038356,30]
[339888003,1728141055463,-872.67,0.00038356,30]
[339888004,1728141055473,-558.51,0.00038356,30]
[339888005,1728141055483,-500.0,0.00038356,30]
[339888006,1728141055492,-687.11,0.00038356,30]
[339888007,1728141055503,-500.0,0.00038356,30]
[339888008,1728141055513,-500.0,0.00038356,30]
[339888009,1728141055523,-500.0,0.00038356,30]
[339888010,1728141055533,-500.0,0.00038356,30]
[339888011,1728141055547,-500.0,0.00038356,30]
[339888012,1728141055557,-500.0,0.00038356,30]
[339888013,1728141055570,-500.0,0.00038356,30]
[339888014,1728141055579,-500.0,0.00038356,30]
[339888015,1728141055588,-500.0,0.00038356,30]
[339888016,1728141055598,-500.0,0.00038356,30]
[339888017,1728141055607,-1378.91,0.00038356,30]
[339888018,1728141055616,-500.0,0.00038356,30]
[339888019,1728141055625,-500.0,0.00038356,30]
[339888020,1728141055634,-501.8870094,0.00038356,30]
[339888021,1728141055643,-500.0,0.00038356,30]
[339888022,1728141055651,-500.0,0.00038356,30]
[339888023,1728141055661,-1228.88,0.00038356,30]
[339888024,1728141055670,-500.0,0.00038356,30]
[339888025,1728141055679,-500.0,0.00038356,30]
[339888026,1728141055689,-673.85,0.00038356,30]
[339888027,1728141055701,-500.0,0.00038356,30]
[339888028,1728141055710,-500.0,0.00038356,30]
[339888029,1728141055719,-1831.56,0.00038356,30]
[339888030,1728141055728,-500.0,0.00038356,30]
[339888031,1728141055738,-755.7,0.00038356,30]
[339888032,1728141055747,-500.0,0.00038356,30]
[339888033,1728141055756,-500.0,0.00038356,30]
[339888034,1728141055767,-500.0,0.00038356,30]
[339888035,1728141055776,-500.0,0.00038356,30]
[339888036,1728141055786,-500.0,0.00038356,30]
[339888037,1728141055796,-500.0,0.00038356,30]
[339888038,1728141055805,-500.0,0.00038356,30]
[339888039,1728141055814,-500.0,0.00038356,30]
[339888040,1728141055823,-500.0,0.00038356,30]
[339888041,1728141055832,-500.0,0.00038356,30]
[339888042,1728141055841,-1033.02,0.00038356,30]
[339888043,1728141055850,-733.48,0.00038356,30]
[339888044,1728141055859,-500.0,0.00038356,30]
[339888045,1728141055869,-500.0,0.00038356,30]
[339888046,1728141055878,-500.17001686,0.00038356,30]
[339888047,1728141055887,-500.0,0.00038356,30]
[339888048,1728141055896,-500.0,0.00038356,30]
[339888049,1728141055905,-500.0,0.00038356,30]
[339888050,1728141055915,-502.14387235,0.00038356,30]
[339888051,1728141055923,-500.0,0.00038356,30]
[339888052,1728141055933,-500.0,0.00038356,2]
[339888053,1728141055942,-500.0,0.00038356,2]
[339888054,1728141055951,-1350.46,0.00038356,30]
[339888055,1728141055960,-500.0,0.00038356,2]
[339888056,1728141055969,-500.0,0.00038356,30]
[339888057,1728141055979,-500.0,0.00038356,2]
[339888058,1728141055988,-500.0,0.00038356,2]
[339888059,1728141055998,-739.45,0.00038356,30]
[339888060,1728141056007,-500.0,0.00038356,2]
[339888061,1728141056016,-500.0,0.00038356,30]
[339888062,1728141056026,-500.0,0.00038356,2]
[339888063,1728141056036,-431.14696244,0.00038356,30]
[339888064,1728141056046,-502.14387335,0.00038356,2]
[339888065,1728141056055,-500.0,0.00038356,30]
[339888066,1728141056064,-500.0,0.00038356,30]
[339888067,1728141056073,-503.31463346,0.00038356,30]
[339888068,1728141056082,-1345.41,0.00038356,30]
[339888069,1728141056092,-548.02,0.00038356,30]
[339888070,1728141056101,-500.0,0.00038356,30]
[339888071,1728141056110,-500.0,0.00038356,30]
[339888072,1728141056119,-500.0,0.00038356,30]
[339888073,1728141056128,-214.6694059,0.00038356,30]
[339888074,1728141056137,-500.0,0.00038356,30]
[339888075,1728141056147,-500.0,0.00038356,30]
[339888076,1728141056156,-500.0,0.00038356,30]
[339888077,1728141056166,-500.0,0.00038356,30]
[339888078,1728141056175,-500.0,0.00038356,30]
[339888079,1728141056184,-500.0,0.00038356,30]
[339888080,1728141056194,-500.0,0.00038356,30]
[339888081,1728141056203,-500.0,0.00038356,30]
[339888082,1728141056212,-500.0,0.00038356,30]
[339888083,1728141056221,-500.0,0.00038356,30]
[339888084,1728141056231,-500.0,0.00038356,30]
[339888085,1728141056241,-500.0,0.00038356,30]
[339888086,1728141056252,-519.44533499,0.00038356,30]
[339888087,1728141056262,-510.10067028,0.00038356,30]
[339888088,1728141056272,-500.0,0.00038356,30]
[339888089,1728141056283,-500.0,0.00038356,30]
[339888090,1728141056293,-1191.84,0.00038356,30]
[339888091,1728141056302,-576.86120008,0.00038356,30]
[339888092,1728141056311,-500.0,0.00038356,30]
[339888093,1728141056321,-615.3,0.00038356,30]
[339888094,1728141056331,-500.0,0.00038356,30]
[339888095,1728141056342,-500.0,0.00038356,30]
[339888096,1728141056352,-796.89,0.00038356,30]
[339888097,1728141056362,-234.98764985,0.00038356,30]
[339888098,1728141056371,-830.49,0.00038356,30]
[339888099,1728141056380,-258.19158572,0.00038356,30]
[339888100,1728141056389,-942.8,0.00038356,30]
[339888101,1728141056398,-500.0,0.00038356,30]
[339888102,1728141056407,-523.78,0.00038356,30]
[339888103,1728141056417,-500.0,0.00038356,30]
[339888104,1728141056426,-501.92,0.00038356,30]
[339888105,1728141056436,-502.67063866,0.00038356,30]
[339888106,1728141056444,-777.89,0.00038356,30]
[339888107,1728141056454,-500.0,0.00038356,30]
[339888108,1728141056463,-500.0,0.00038356,30]
[339888109,1728141056473,-500.0,0.00038356,30]
[339888110,1728141056482,-500.0,0.00038356,30]
[339888111,1728141056492,-500.0,0.00038356,30]
[339888112,1728141056501,-1623.11,0.00038356,30]
[339888113,1728141056511,-500.0,0.00038356,30]
[339888114,1728141056520,-500.0,0.00038356,30]
[339888115,1728141056529,-502.98401836,0.00038356,30]
[339888116,1728141056539,-500.0,0.00038356,30]
[339888117,1728141056548,-566.2,0.00038356,30]
[339888118,1728141056557,-500.0,0.00038356,30]
[339888119,1728141056566,-500.0,0.00038356,30]
[339888120,1728141056575,-500.0,0.00038356,30]
[339888121,1728141056585,-500.0,0.00038356,30]
[339888122,1728141056594,-1587.16,0.00038356,30]
[339888123,1728141056603,-513.0,0.00038356,30]
[339888124,1728141056613,-500.0,0.00038356,30]
[339888125,1728141056622,-500.0,0.00038356,30]
[339888126,1728141056631,-500.0,0.00038356,30]
[339888127,1728141056642,-500.0,0.00038356,30]
[339888128,1728141056652,-1134.64,0.00038356,30]
[339888129,1728141056662,-500.0,0.00038356,30]
[339888130,1728141056672,-500.0,0.00038356,30]
[339888131,1728141056682,-500.0,0.00038356,30]
[339888132,1728141056696,-1363.46,0.00038356,30]
[339888133,1728141056705,-500.0,0.00038356,30]
[339888134,1728141056715,-500.0,0.00038356,30]
[339888135,1728141056725,-1001.07754644,0.00038356,30]
[339888136,1728141056735,-500.0,0.00038356,30]
[339888137,1728141056744,-503.20361052,0.00038356,30]
[339888138,1728141056754,-502.25076959,0.00038356,30]
[339888139,1728141056762,-500.0,0.00038356,30]
[339888140,1728141056771,-500.0,0.00038356,30]
[339888141,1728141056780,-500.0,0.00038356,30]
[339888142,1728141056791,-500.0,0.00038356,30]
[339888143,1728141056800,-500.0,0.00038356,30]
[339888144,1728141056810,-500.0,0.00038356,30]
[339888145,1728141056822,-500.0,0.00038356,30]
[339888146,1728141056832,-683.54,0.00038356,30]
[339888147,1728141056842,-500.0,0.00038356,30]
[339888148,1728141056852,-500.0,0.00038356,30]
[339888149,1728141056861,-500.0,0.00038356,30]
[339888150,1728141056870,-1515.33,0.00038356,30]
[339888151,1728141056879,-500.0,0.00038356,30]
[339888152,1728141056888,-503.11004162,0.00038356,30]
[339888153,1728141056897,-500.0,0.00038356,30]
[339888154,1728141056906,-500.0,0.00038356,30]
[339888155,1728141056916,-566.9,0.00038356,30]
[339888156,1728141056925,-500.0,0.00038356,30]
[339888157,1728141056935,-501.50293827,0.00038356,30]
[339888158,1728141056944,-500.0,0.00038356,30]
[339888159,1728141056953,-500.0,0.00038356,30]
[339888160,1728141056963,-474.02167352,0.00038356,30]
[339888161,1728141056972,-500.0,0.00038356,30]
[339888162,1728141056981,-500.0,0.00038356,30]
[339888163,1728141056990,-500.0,0.00038356,30]
[339888164,1728141056999,-924.07,0.00038356,30]
[339888165,1728141057009,-500.0,0.00038356,30]
[339888166,1728141057158,-500.0,0.00038356,30]
[339888167,1728141057168,-500.0,0.00038356,30]
[339888168,1728141057177,-500.0,0.00038356,30]
[339888169,1728141057186,-500.0,0.00038356,30]
[339888170,1728141057195,-151.0,0.00038356,7]
[339888171,1728141057204,-503.73818525,0.00038356,30]
[339888172,1728141057213,-151.0,0.00038356,7]
[339888173,1728141057222,-500.0,0.00038356,30]
[339888174,1728141057231,-151.0,0.00038356,7]
[339888175,1728141057241,-500.0,0.00038356,30]
[339888176,1728141057250,-958.3,0.00038356,30]
[339888177,1728141057259,-506.60482449,0.00038356,30]
[339888178,1728141057268,-761.7,0.00038356,30]
[339888179,1728141057278,-500.0,0.00038356,30]
[339888180,1728141057287,-500.0,0.00038356,30]
[339888181,1728141057298,-500.0,0.00038356,30]
[339888182,1728141057307,-500.0,0.00038356,30]
[339888183,1728141057316,-503.10840202,0.00038356,30]
[339888184,1728141057325,-766.4,0.00038356,30]
[339888185,1728141057334,-500.0,0.00038356,30]
[339888186,1728141057343,-500.0,0.00038356,30]
[339888187,1728141057352,-1010.14,0.00038356,30]
[339888188,1728141057361,-500.0,0.00038356,30]
[339888189,1728141057370,-500.0,0.00038356,30]
[339888190,1728141057380,-574.62,0.00038356,30]
[339888191,1728141057389,-771.98,0.00038356,30]
[339888192,1728141057399,-771.98,0.00038356,30]
[339888193,1728141057409,-514.22,0.00038356,30]
[339888194,1728141057419,-503.14283976,0.00038356,30]
[339888195,1728141057428,-771.98,0.00038356,30]
[339888196,1728141057437,-771.98,0.00038356,30]
[339888197,1728141057446,-500.0,0.00038356,30]
[339888198,1728141057456,-771.98,0.00038356,30]
[339888199,1728141057465,-771.98,0.00038356,30]
[339888200,1728141057474,-771.98,0.00038356,30]
[339888201,1728141057484,-542.33,0.00038356,30]
[339888202,1728141057494,-771.98,0.00038356,30]
[339888203,1728141057503,-500.0,0.00038356,30]
[339888204,1728141057513,-771.98,0.00038356,30]
[339888205,1728141057523,-771.98,0.00038356,30]
[339888206,1728141057532,-500.0,0.00038356,30]
[339888207,1728141057541,-771.98,0.00038356,30]
[339888208,1728141057551,-771.98,0.00038356,30]
[339888209,1728141057560,-771.98,0.00038356,30]
[339888210,1728141057569,-771.98,0.00038356,30]
[339888211,1728141057578,-771.98,0.00038356,30]
[339888212,1728141057587,-771.98,0.00038356,30]
[339888213,1728141057596,-771.98,0.00038356,30]
[339888214,1728141057605,-771.98,0.00038356,30]
[339888215,1728141057615,-500.0,0.00038356,30]
[339888216,1728141057624,-771.98,0.00038356,30]